bitfinex/quotes_SOLUSD_20250108
["timestamp","ask_amount","ask_price","bid_price","bid_amount"]
[1736356907183,13.83116925,191.47,191.32,51.10244343]
[1736356907496,20.940528,191.46,191.33,79.87932743]
[1736356907654,13.83116925,191.47,191.35,79.87932743]
[1736356907852,13.83116925,191.47,191.38,51.10244343]
[1736356908074,20.934076,191.5,191.36,67.00904343]
[1736356908276,20.0,191.54,191.36,15.9066]
[1736356908450,5.0,191.59,191.36,15.9066]
[1736356908451,20.0,191.5,191.36,15.9066]
[1736356908650,20.937901,191.58,191.37,23.776884]
[1736356908887,20.937901,191.58,191.37,74.87932743]
[1736356909170,20.0,191.55,191.36,15.9066]
[1736356909478,20.0,191.51,191.36,15.9066]
[1736356909878,20.0,191.47,191.36,15.9066]
[1736356910087,20.0,191.46,191.36,3.8691]
[1736356910462,20.0,191.45,191.36,3.8691]
[1736356911194,30.0,191.56,191.36,3.8691]
[1736356911356,30.0,191.54,191.36,3.8691]
[1736356911555,20.0,191.49,191.36,3.8691]
[1736356911965,23.776884,191.53,191.36,3.8691]
[1736356912162,23.776884,191.51,191.36,3.8691]
[1736356912378,20.0,191.44,191.36,3.8691]
[1736356912603,5.0,191.52,191.36,3.8691]
[1736356912604,30.0,191.52,191.36,3.8691]
[1736356912764,14.05573906,191.54,191.36,3.8691]
[1736356912961,14.05573906,191.54,191.39,74.87932743]
[1736356913264,20.0,191.49,191.4,12.6389]
[1736356914978,20.0,191.51,191.4,12.6389]
[1736356915361,20.0,191.5,191.4,12.6389]
[1736356915757,20.0,191.48,191.36,3.8691]
[1736356915981,20.0,191.51,191.36,3.8691]
[1736356916180,20.0,191.49,191.36,3.8691]
[1736356916487,20.0,191.47,191.36,3.8691]
[1736356916658,23.776884,191.48,191.36,3.8691]
[1736356916863,20.0,191.45,191.36,3.8691]
[1736356917090,20.0,191.44,191.36,3.8691]
[1736356917693,20.0,191.47,191.36,3.8691]
[1736356918167,20.0,191.46,191.36,3.8691]
[1736356918562,20.0,191.48,191.36,3.8691]
[1736356919182,20.0,191.5,191.36,3.8691]
[1736356920595,30.0,191.52,191.36,3.8691]
[1736356920966,20.0,191.49,191.36,3.8691]
[1736356921382,20.0,191.46,191.36,3.8691]
[1736356921580,20.0,191.44,191.36,3.8691]
[1736356921969,20.0,191.4,191.36,3.8691]
[1736356922265,20.0,191.36,191.29,3.669]
[1736356922470,20.0,191.32,191.29,3.669]
[1736356922701,20.0,191.32,191.21,3.6241]
[1736356922879,20.0,191.28,191.21,3.6241]
[1736356923264,291.47150512,191.33,191.21,3.6241]
[1736356923489,20.0,191.3,191.21,3.6241]
[1736356924096,20.0,191.28,191.21,3.6241]
[1736356924464,20.0,191.3,191.21,3.6241]
[1736356925264,20.0,191.31,191.21,3.6241]
[1736356925471,20.0,191.3,191.21,3.6241]
[1736356925992,30.0,191.35,191.21,3.6241]
[1736356926192,30.0,191.39,191.21,3.6241]
[1736356926497,13.76982125,191.43,191.21,3.6241]
[1736356926684,13.76982125,191.43,191.22,23.776884]
[1736356926990,13.76982125,191.43,191.27,16.1957]
[1736356928193,20.0,191.4,191.27,16.1957]
[1736356928884,20.0,191.39,191.27,16.1957]
[1736356929279,32.42,191.48,191.27,16.1957]
[1736356929578,2.42,191.48,191.28,28.776884]
[1736356929881,2.42,191.48,191.29,5.0]
[1736356930122,2.42,191.48,191.29,56.10244343]
[1736356930414,2.42,191.48,191.3,28.776884]
[1736356930577,2.42,191.48,191.33,3.6037]
[1736356930905,2.42,191.48,191.34,23.776884]
[1736356931199,2.42,191.48,191.35,12.2084]
[1736356931614,20.0,191.44,191.35,12.2084]
[1736356931978,2.42,191.48,191.35,12.2084]
[1736356933275,20.0,191.44,191.35,12.2084]
[1736356933479,20.0,191.4,191.33,3.6037]
[1736356933695,20.0,191.39,191.33,3.6037]
[1736356933889,23.776884,191.38,191.25,3.6133]
[1736356934089,20.0,191.36,191.25,3.6133]
[1736356934600,20.0,191.32,191.25,3.6133]
[1736356935000,20.0,191.28,191.25,3.6133]
[1736356935818,261.47150512,191.41,191.25,3.6133]
[1736356936288,23.776884,191.4,191.25,3.6133]
[1736356936608,20.0,191.36,191.25,3.6133]
[1736356936809,20.0,191.3,191.25,3.6133]
[1736356936986,20.0,191.26,191.25,3.6133]
[1736356937184,20.0,191.26,191.16,3.8234]
[1736356937385,23.776884,191.25,191.16,3.8234]
[1736356937722,20.0,191.2,191.09,3.8234]
[1736356938289,23.776884,191.23,191.09,3.8234]
[1736356938488,20.0,191.2,191.09,3.8234]
[1736356939110,20.0,191.19,191.09,3.8234]
[1736356939318,20.0,191.17,191.09,3.8234]
[1736356939519,23.776884,191.16,191.09,3.8234]
[1736356939825,20.0,191.16,191.09,3.8234]
[1736356940311,291.47150512,191.25,191.09,3.8234]
[1736356940612,20.0,191.19,191.09,3.8234]
[1736356941209,20.0,191.14,191.09,3.8234]
[1736356941399,23.776884,191.09,191.07,2.55]
[1736356941599,20.0,191.1,191.07,2.55]
[1736356941997,30.0,191.15,191.07,2.55]
[1736356942225,20.0,191.12,191.07,2.55]
[1736356942817,30.0,191.18,191.07,2.55]
[1736356942999,43.776884,191.14,191.07,2.55]
[1736356943198,73.776884,191.14,191.07,2.55]
[1736356943398,20.0,191.09,191.07,2.55]
[1736356943612,20.0,191.08,191.07,2.55]
[1736356944129,20.0,191.04,191.0,17.5120391]
[1736356944714,20.0,191.03,191.0,17.5120391]
[1736356944917,43.776884,191.01,191.0,17.5120391]
[1736356945529,30.0,191.09,191.0,17.5120391]
[1736356945726,30.0,191.11,191.0,17.5120391]
[1736356945907,5.0,191.18,191.0,17.5120391]
[1736356945908,30.0,191.15,191.0,17.5120391]
[1736356946112,23.776884,191.11,191.0,17.5120391]
[1736356946322,291.47150512,191.17,191.0,17.5120391]
[1736356946527,30.0,191.15,191.0,17.5120391]
[1736356946716,30.0,191.13,191.0,17.5120391]
[1736356946916,30.0,191.11,191.0,17.5120391]
[1736356947123,20.0,191.08,191.0,17.5120391]
[1736356947313,30.0,191.16,191.0,17.5120391]
[1736356947512,30.0,191.12,191.0,17.5120391]
[1736356947918,30.0,191.14,191.0,17.5120391]
[1736356948115,20.0,191.09,191.0,17.5120391]
[1736356948725,20.0,191.05,191.0,17.5120391]
[1736356948921,20.0,191.01,191.0,17.5120391]
[1736356949933,50.0,191.05,191.0,17.5120391]
[1736356950433,20.0,191.05,191.0,17.5120391]
[1736356950934,20.0,191.01,191.0,17.5120391]
[1736356951140,43.776884,191.01,191.0,17.5120391]
[1736356952220,30.0,191.06,191.0,17.5120391]
[1736356952419,20.0,191.03,191.0,17.5120391]
[1736356954324,261.47150512,191.09,191.0,17.5120391]
[1736356954525,30.0,191.1,191.0,17.5120391]
[1736356954820,30.0,191.09,191.0,17.5120391]
[1736356955025,30.0,191.11,191.0,17.5120391]
[1736356955216,20.0,191.08,191.0,17.5120391]
[1736356955412,30.0,191.11,191.0,17.5120391]
[1736356955636,30.0,191.14,191.01,3.674]
[1736356955935,30.0,191.16,191.02,12.5952]
[1736356956149,30.0,191.11,191.02,12.5952]
[1736356956319,20.0,191.06,191.01,3.674]
[1736356956933,43.776884,191.1,191.01,3.674]
[1736356957452,20.0,191.11,191.01,3.674]
[1736356957626,20.0,191.1,191.01,3.674]
[1736356957825,30.0,191.14,191.01,3.674]
[1736356958022,30.0,191.16,191.01,3.674]
[1736356958224,30.0,191.2,191.01,3.674]
[1736356958745,291.47150512,191.25,191.01,3.674]
[1736356958952,20.972022,191.23,191.03,12.805]
[1736356959131,20.0,191.15,191.03,12.805]
[1736356959534,50.972022,191.23,191.03,12.805]
[1736356959730,20.972022,191.23,191.03,12.805]
[1736356959929,30.0,191.29,191.04,56.10244343]
[1736356960231,261.47150512,191.33,191.03,17.805]
[1736356960232,30.0,191.27,191.05,3.7891]
[1736356960626,30.0,191.29,191.06,5.0]
[1736356960854,30.0,191.31,191.07,33.776884]
[1736356961163,23.776884,191.26,191.05,3.7891]
[1736356961327,43.776884,191.22,191.05,3.7891]
[1736356961524,20.0,191.22,191.05,3.7891]
[1736356961729,20.0,191.21,191.05,3.7891]
[1736356961930,20.0,191.18,191.05,3.7891]
[1736356962243,20.0,191.14,191.05,3.7891]
[1736356962424,20.0,191.1,191.05,3.7891]
[1736356964254,43.776884,191.09,191.05,3.7891]
[1736356964554,20.0,191.03,191.0,17.5120391]
[1736356965060,23.776884,191.02,191.0,17.5120391]
[1736356965260,20.0,191.01,191.0,17.5120391]
[1736356966035,43.776884,191.01,191.0,17.5120391]
[1736356967440,20.0,190.94,190.88,8.6489]
[1736356968159,20.0,190.93,190.88,8.6489]
[1736356968471,277.13150512,191.08,190.88,8.6489]
[1736356968472,20.0,190.91,190.88,8.6489]
[1736356968836,20.0,190.94,190.88,8.6489]
[1736356969161,20.0,190.92,190.88,8.6489]
[1736356969534,20.0,190.93,190.88,8.6489]
[1736356969738,20.0,190.94,190.88,8.6489]
[1736356970258,30.0,190.99,190.88,8.6489]
[1736356970559,20.0,190.96,190.88,8.6489]
[1736356970938,20.0,190.94,190.88,8.6489]
[1736356971539,50.0,190.94,190.88,8.6489]
[1736356971755,20.0,190.91,190.88,8.6489]
[1736356972643,20.0,190.89,190.88,8.6489]
[1736356973361,20.0,190.93,190.88,8.6489]
[1736356973548,20.0,190.91,190.88,8.6489]
[1736356973738,20.0,190.89,190.88,5.0]
[1736356973938,30.0,190.9,190.88,5.0]
[1736356974852,30.0,190.95,190.88,5.0]
[1736356975162,30.0,190.98,190.88,5.0]
[1736356975355,30.0,190.94,190.88,5.0]
[1736356975859,20.0,190.91,190.88,5.0]
[1736356976069,20.0,190.89,190.88,5.0]
[1736356976253,30.0,190.9,190.88,5.0]
[1736356977042,20.0,190.89,190.88,5.0]
[1736356977241,30.0,190.91,190.8,2.7189]
[1736356977444,30.0,190.89,190.8,2.7189]
[1736356977650,20.0,190.86,190.8,2.7189]
[1736356977963,50.0,190.86,190.8,2.7189]
[1736356978139,20.0,190.86,190.8,2.7189]
[1736356978340,30.0,190.91,190.8,2.7189]
[1736356978748,20.0,190.86,190.8,2.7189]
[1736356978946,20.0,190.88,190.8,2.7189]
[1736356979152,20.0,190.86,190.8,2.7189]
[1736356979555,30.0,190.93,190.8,2.7189]
[1736356980074,261.47150512,191.0,190.8,2.7189]
[1736356980075,30.0,190.95,190.8,2.7189]
[1736356980281,30.0,190.99,190.81,23.776884]
[1736356980589,30.0,190.99,190.8,2.7189]
[1736356980590,30.0,190.97,190.8,2.7189]
[1736356981066,30.0,190.93,190.8,2.7189]
[1736356981263,30.0,190.95,190.8,2.7189]
[1736356981465,30.0,190.99,190.81,23.776884]
[1736356981765,30.0,190.96,190.8,2.7189]
[1736356982262,30.0,190.9,190.8,2.7189]
[1736356982672,30.0,190.94,190.8,2.7189]
[1736356982872,20.0,190.87,190.8,2.7189]
[1736356983272,20.0,190.83,190.8,2.7189]
[1736356983750,30.0,190.9,190.8,2.7189]
[1736356984452,20.0,190.85,190.8,2.7189]
[1736356984954,30.0,190.91,190.8,2.7189]
[1736356985152,20.0,190.84,190.8,2.7189]
[1736356985656,20.0,190.86,190.8,2.7189]
[1736356985864,30.0,190.95,190.8,2.7189]
[1736356986069,30.0,190.97,190.8,2.7189]
[1736356986272,261.47150512,191.0,190.83,23.776884]
[1736356986454,30.0,190.99,190.82,12.9376]
[1736356986774,20.0,190.94,190.82,12.9376]
[1736356986955,20.0,190.92,190.82,12.9376]
[1736356987158,30.0,191.0,190.83,23.776884]
[1736356987357,30.0,190.97,190.82,12.9376]
[1736356987559,20.0,190.91,190.82,12.9376]
[1736356987873,20.0,190.87,190.82,12.9376]
[1736356988066,30.0,190.97,190.82,12.9376]
[1736356988269,261.47150512,190.99,190.82,12.9376]
[1736356989090,261.47150512,190.99,190.83,23.776884]
[1736356989252,20.0,190.93,190.82,12.9376]
[1736356989650,20.0,190.91,190.82,12.9376]
[1736356989891,20.0,190.87,190.82,12.9376]
[1736356990278,50.0,190.87,190.8,2.7189]
[1736356990578,20.0,190.82,190.8,2.7189]
[1736356990876,291.47150512,190.91,190.8,2.7189]
[1736356991077,20.0,190.88,190.8,2.7189]
[1736356991590,30.0,190.95,190.8,2.7189]
[1736356992158,20.0,190.95,190.8,2.7189]
[1736356992466,20.0,190.92,190.8,2.7189]
[1736356993157,32.5297,190.92,190.8,2.7189]
[1736356993359,12.5297,190.92,190.8,2.7189]
[1736356993576,30.0,190.97,190.8,2.7189]
[1736356993782,10.0,190.96,190.8,2.7189]
[1736356994489,50.0,190.9,190.8,2.7189]
[1736356994893,20.0,190.87,190.8,2.7189]
[1736356995474,30.0,190.94,190.8,2.7189]
[1736356995883,20.0,190.93,190.8,2.7189]
[1736356996068,10.0,190.96,190.8,2.7189]
[1736356996466,40.0,190.96,190.8,2.7189]
[1736356996673,10.0,190.96,190.8,2.7189]
[1736356996969,20.0,190.93,190.8,2.7189]
[1736356997588,10.0,190.96,190.81,23.776884]
[1736356997793,262.58250637,191.01,190.83,23.776884]
[1736356998097,5.3145,190.99,190.83,33.776884]
[1736356998308,5.3145,190.99,190.85,23.776884]
[1736356998485,30.0,191.07,190.86,5.0]
[1736356998793,20.991518,191.03,190.86,5.0]
[1736356998997,20.991518,191.03,190.87,5.0]
[1736356999197,30.0,191.07,190.87,5.0]
[1736356999384,20.0,191.04,190.87,5.0]
[1736356999580,5.0,191.06,190.91,5.0]
[1736356999900,7.52333914,191.1,190.93,5.0]
[1736357000075,20.985209,191.09,190.95,17.7858]
[1736357000279,7.52333914,191.1,190.96,5.0]
[1736357000481,7.52333914,191.1,190.98,3.8954]
[1736357000689,3.54253914,191.1,191.01,5.0]
[1736357000896,3.54253914,191.1,191.02,12.5238]
[1736357001085,15.04667829,191.12,191.02,12.5238]
[1736357001394,7.57345985,191.14,191.02,12.5238]
[1736357001589,20.0,191.08,191.02,12.5238]
[1736357001791,20.0,191.08,190.95,12.5238]
[1736357002096,20.0,191.04,190.95,12.5238]
[1736357002479,292.36840742,191.1,190.95,12.5238]
[1736357002673,30.0,191.08,190.95,12.5238]
[1736357002875,20.0,191.05,190.95,12.5238]
[1736357003381,20.0,191.03,190.95,12.5238]
[1736357003779,20.0,191.05,190.95,12.5238]
[1736357004180,32.5238,191.05,190.95,12.5238]
[1736357004387,20.0,191.01,190.95,12.5238]
[1736357005595,20.0,190.96,190.95,12.5238]
[1736357005898,20.0,190.95,190.86,12.7824]
[1736357006320,262.36840742,191.02,190.86,12.7824]
[1736357006483,30.0,191.07,190.86,12.7824]
[1736357006806,30.0,191.08,190.86,12.7824]
[1736357007006,262.36840742,191.1,190.86,12.7824]
[1736357007007,20.0,191.03,190.86,12.7824]
[1736357007502,30.0,191.08,190.9,5.0]
[1736357007699,262.36840742,191.1,190.9,28.776884]
[1736357007880,262.36840742,191.1,190.92,23.776884]
[1736357008080,262.36840742,191.1,190.93,16.5519]
[1736357008418,30.0,191.14,190.94,33.776884]
[1736357008607,30.0,191.14,190.94,28.776884]
[1736357008900,30.0,191.17,190.97,23.776884]
[1736357009105,262.36840742,191.18,190.97,23.776884]
[1736357009294,20.0,191.14,190.97,23.776884]
[1736357009497,262.36840742,191.18,190.98,5.0]
[1736357009680,262.36840742,191.18,191.01,23.776884]
[1736357009882,30.0,191.23,191.03,33.776884]
[1736357010095,20.0,191.2,191.03,23.776884]
[1736357010298,20.0,191.16,191.02,3.7627]
[1736357010602,297.46176401,191.26,191.02,3.7627]
[1736357010603,20.0,191.18,191.02,3.7627]
[1736357010802,30.0,191.25,191.05,5.0]
[1736357010983,30.0,191.25,191.03,23.776884]
[1736357011184,30.0,191.23,191.02,3.7627]
[1736357011379,20.0,191.19,191.02,3.7627]
[1736357011582,20.0,191.19,191.05,28.776884]
[1736357011778,20.0,191.19,191.02,3.7627]
[1736357011779,30.0,191.2,191.08,13.1421]
[1736357011988,20.0,191.13,191.02,16.9048]
[1736357012203,20.0,191.11,191.02,16.9048]
[1736357012505,30.0,191.12,191.02,13.1421]
[1736357012506,20.0,191.07,191.02,13.1421]
[1736357013088,30.0,191.16,191.02,13.1421]
[1736357013280,20.0,191.11,191.02,13.1421]
[1736357013481,20.0,191.12,191.02,13.1421]
[1736357013886,262.36840742,191.18,191.02,13.1421]
[1736357014287,20.0,191.15,191.02,13.1421]
[1736357014482,20.0,191.13,191.02,13.1421]
[1736357015309,20.0,191.15,191.02,13.1421]
[1736357016406,262.36840742,191.18,191.02,13.1421]
[1736357016997,292.36840742,191.18,191.02,13.1421]
[1736357017202,20.0,191.15,191.02,13.1421]
[1736357017497,20.0,191.13,191.02,13.1421]
[1736357017695,50.0,191.13,191.02,13.1421]
[1736357017884,20.0,191.08,191.02,13.1421]
[1736357018294,20.0,191.04,190.95,12.1475]
[1736357018494,20.0,191.02,190.95,12.1475]
[1736357019115,262.36840742,191.1,190.95,12.1475]
[1736357019327,20.0,191.07,190.95,12.1475]
[1736357020107,15.04667829,191.13,190.96,23.776884]
[1736357020316,30.0,191.17,190.96,23.776884]
[1736357020506,30.0,191.15,190.96,23.776884]
[1736357020894,30.0,191.17,190.96,23.776884]
[1736357021094,30.0,191.15,190.96,23.776884]
[1736357021300,30.0,191.12,190.95,12.1475]
[1736357021708,20.0,191.09,190.95,12.1475]
[1736357022401,20.0,191.11,190.95,12.1475]
[1736357022707,20.0,191.11,190.96,23.776884]
[1736357022908,30.0,191.16,190.96,23.776884]
[1736357023110,30.0,191.14,190.95,12.1475]
[1736357023309,20.0,191.09,190.95,12.1475]
[1736357024022,20.0,191.07,190.95,12.1475]
[1736357024429,20.0,191.05,190.95,12.1475]
[1736357024605,20.0,191.01,190.95,12.1475]
[1736357025085,20.0,191.01,190.79,5.0]
[1736357025086,20.0,190.96,190.86,3.6306]
[1736357025723,30.0,190.99,190.86,3.6306]
[1736357025724,30.0,190.97,190.86,3.6306]
[1736357026222,30.0,190.93,190.79,15.7453]
[1736357026391,23.776884,190.92,190.79,15.7453]
[1736357026589,30.0,190.9,190.79,15.7453]
[1736357026791,30.0,190.9,190.79,12.1147]
[1736357027006,30.0,190.88,190.79,12.1147]
[1736357027215,23.776884,190.87,190.78,0.3145]
[1736357027405,30.0,190.86,190.78,0.3145]
[1736357027597,30.0,190.84,190.78,0.3145]
[1736357027799,30.0,190.82,190.78,0.3145]
[1736357028404,30.0,190.8,190.78,0.3145]
[1736357028914,30.0,190.83,190.78,0.3145]
[1736357029297,20.0,190.8,190.78,0.3145]
[1736357029490,20.0,190.8,190.67,32.1147]
[1736357029694,30.0,190.85,190.67,32.1147]
[1736357029916,20.0,190.82,190.67,32.1147]
[1736357030118,50.0,190.82,190.67,32.1147]
[1736357030321,20.0,190.76,190.67,32.1147]
[1736357030921,30.0,190.86,190.67,32.1147]
[1736357031315,20.0,190.83,190.67,32.1147]
[1736357031648,23.776884,190.85,190.67,32.1147]
[1736357031820,20.0,190.81,190.67,32.1147]
[1736357032430,20.0,190.83,190.67,32.1147]
[1736357032635,50.0,190.83,190.67,32.1147]
[1736357032934,20.0,190.76,190.67,32.1147]
[1736357033136,20.0,190.74,190.67,32.1147]
[1736357033640,23.776884,190.82,190.67,32.1147]
[1736357033837,30.0,190.77,190.67,32.1147]
[1736357034021,30.0,190.79,190.67,32.1147]
[1736357034429,30.0,190.77,190.67,20.0]
[1736357034738,30.0,190.81,190.67,20.0]
[1736357034940,30.0,190.79,190.67,20.0]
[1736357035121,23.776884,190.77,190.67,20.0]
[1736357035345,30.0,190.76,190.67,20.0]
[1736357035654,292.81056955,190.8,190.67,20.0]
[1736357035858,30.76351748,190.9,190.67,20.0]
[1736357035859,30.0,190.83,190.67,20.0]
[1736357036338,30.0,190.79,190.67,20.0]
[1736357036543,20.0,190.77,190.67,20.0]
[1736357036943,20.0,190.78,190.67,20.0]
[1736357037252,30.0,190.83,190.67,20.0]
[1736357037466,30.0,190.87,190.68,16.9671]
[1736357038125,20.0,190.84,190.68,16.9671]
[1736357038317,30.0,190.87,190.68,16.9671]
[1736357039033,20.0,190.83,190.68,16.9671]
[1736357039440,30.0,190.92,190.71,5.0]
[1736357039752,42.88479424,190.93,190.68,22.7533434]
[1736357039935,30.0,190.88,190.68,16.9671]
[1736357040141,30.0,190.86,190.68,16.9671]
[1736357040455,20.0,190.83,190.68,16.9671]
[1736357040968,20.0,190.85,190.68,16.9671]
[1736357041354,30.0,190.92,190.71,28.776884]
[1736357041668,12.88479424,190.93,190.77,3.9388]
[1736357041834,30.0,190.99,190.77,3.9388]
[1736357042244,30.0,190.99,190.79,5.0]
[1736357042576,43.06812666,191.03,190.87,13.045]
[1736357042748,282.85724784,191.12,190.87,13.045]
[1736357043079,30.0,191.1,190.88,3.715]
[1736357043234,20.0,191.07,190.88,3.715]
[1736357043443,20.0,191.05,190.88,3.715]
[1736357043738,30.0,191.08,190.88,3.715]
[1736357043739,20.0,191.03,190.88,3.715]
[1736357043954,5.0,191.08,190.88,3.715]
[1736357043955,30.0,191.04,190.88,3.715]
[1736357044267,30.0,191.02,190.88,3.715]
[1736357044566,23.776884,190.99,190.88,3.715]
[1736357044762,30.0,191.02,190.88,3.715]
[1736357045138,292.81056955,191.04,190.88,3.715]
[1736357045457,30.0,191.06,190.88,3.715]
[1736357045666,30.0,191.1,190.88,3.715]
[1736357045955,12.72882976,191.11,190.92,12.7925]
[1736357046357,12.72882976,191.11,190.93,23.776884]
[1736357046673,12.72882976,191.11,190.92,12.7925]
[1736357047153,12.72882976,191.11,190.93,23.776884]
[1736357047668,12.72882976,191.11,190.92,12.7925]
[1736357047878,20.0,191.08,190.92,12.7925]
[1736357048047,20.0,191.05,190.92,12.7925]
[1736357048244,20.0,191.03,190.92,12.7925]
[1736357048655,20.0,190.99,190.92,12.7925]
[1736357049272,20.0,191.05,190.92,12.7925]
[1736357049871,30.0,191.1,190.92,12.7925]
[1736357050080,30.0,191.13,190.92,12.7925]
[1736357050246,42.72882976,191.11,190.92,12.7925]
[1736357050572,20.0,191.07,190.92,12.7925]
[1736357050958,20.0,191.05,190.92,12.7925]
[1736357051156,20.0,191.03,190.92,12.7925]
[1736357051466,30.0,191.0,190.92,12.7925]
[1736357051968,23.776884,190.97,190.88,3.715]
[1736357052170,30.0,190.98,190.85,11.4606]
[1736357052474,30.0,191.02,190.85,11.4606]
[1736357052767,292.81056955,191.04,190.85,11.4606]
[1736357052969,292.81056955,191.04,190.85,6.4606]
[1736357053159,30.0,191.02,190.85,6.4606]
[1736357053467,262.81056955,191.04,190.85,6.4606]
[1736357053468,30.0,191.0,190.85,6.4606]
[1736357053660,23.776884,190.99,190.85,6.4606]
[1736357053869,30.0,191.02,190.85,6.4606]
[1736357054071,30.0,191.02,190.85,1.4606]
[1736357054372,292.81056955,191.04,190.85,1.4606]
[1736357054773,30.0,191.0,190.85,1.4606]
[1736357054973,282.81056955,190.95,190.68,0.78593853]
[1736357055161,20.0,190.89,190.68,3.8216]
[1736357055477,20.0,190.89,190.71,5.0]
[1736357055684,20.0,190.91,190.71,5.0]
[1736357055977,20.0,190.91,190.72,5.0]
[1736357056359,262.81056955,190.95,190.73,28.776884]
[1736357056678,20.0,190.92,190.71,0.95882304]
[1736357056879,20.0,190.91,190.71,0.95882304]
[1736357057090,20.0,190.91,190.72,12.2775]
[1736357057263,20.0,190.87,190.72,12.2775]
[1736357057579,20.0,190.87,190.72,7.2775]
[1736357057759,30.0,190.93,190.72,31.054384]
[1736357057955,20.0,190.88,190.72,7.2775]
[1736357058475,1.1024,190.9,190.72,7.2775]
[1736357058775,1.1024,190.88,190.72,7.2775]
[1736357058981,1.1024,190.92,190.72,31.054384]
[1736357059169,30.0,190.93,190.72,7.2775]
[1736357059479,1.1024,190.9,190.72,2.2775]
[1736357059778,1.1024,190.92,190.72,26.054384]
[1736357059996,1.1024,190.94,190.75,3.8976]
[1736357060280,1.1024,190.94,190.73,5.64237213]
[1736357060580,1.1024,190.91,190.73,0.9587225]
[1736357060753,1.1024,190.87,190.73,0.9587225]
[1736357061075,1.1024,190.87,190.72,2.2775]
[1736357061076,1.1024,190.84,190.72,2.2775]
[1736357061313,23.776884,190.82,190.67,18.8216]
[1736357061484,1.1024,190.78,190.67,18.8216]
[1736357061810,1.1024,190.73,190.67,18.8216]
[1736357062011,21.1024,190.71,190.67,18.8216]
[1736357062173,1.1024,190.68,190.67,18.8216]
[1736357062675,30.0,190.69,190.67,18.8216]
[1736357062998,20.0,190.69,190.67,18.8216]
[1736357063589,1.1024,190.76,190.67,18.8216]
[1736357063891,1.1024,190.74,190.67,18.8216]
[1736357064207,1.1024,190.73,190.67,18.8216]
[1736357064695,1.1024,190.75,190.67,13.8216]
[1736357064901,1.1024,190.74,190.67,13.8216]
[1736357065100,1.1024,190.73,190.67,13.8216]
[1736357065270,1.1024,190.71,190.67,8.8216]
[1736357065876,1.1024,190.69,190.67,8.8216]
[1736357066119,1.1024,190.68,190.67,8.8216]
[1736357066698,1.1024,190.69,190.67,8.8216]
[1736357066906,1.1024,190.68,190.67,8.8216]
[1736357067278,1.1024,190.71,190.67,8.8216]
[1736357068102,1.1024,190.7,190.67,8.8216]
[1736357068310,1.1024,190.71,190.67,8.8216]
[1736357068493,1.1024,190.75,190.67,8.8216]
[1736357068833,1.1024,190.72,190.67,8.8216]